[Event "Early-Titled-Tuesday-Blitz-October-10-2023"]
[Site "Chess.com"]
[Date "2023.10.10"]
[Round "5"]
[White "Bilan_Danila"]
[Black "ChainedDowntohell"]
[Result "1-0"]
[WhiteElo "2578"]
[BlackElo "2436"]
[TimeControl "180+1"]
[EndTime "8:55:11 PDT"]
[Termination "Bilan_Danila won on time"]

1. d4 {[%clk 0:02:55.3]} 1... Nf6 {[%clk 0:02:59.2]} 2. Nf3 {[%clk 0:02:53]}
2... e6 {[%clk 0:02:58.5]} 3. g3 {[%clk 0:02:52.7]} 3... b6 {[%clk 0:02:57.9]}
4. Bg2 {[%clk 0:02:53.1]} 4... Bb7 {[%clk 0:02:57.6]} 5. O-O {[%clk 0:02:53.7]}
5... Be7 {[%clk 0:02:56.7]} 6. c4 {[%clk 0:02:54]} 6... O-O {[%clk 0:02:51.2]}
7. d5 {[%clk 0:02:54]} 7... exd5 {[%clk 0:02:48.1]} 8. Nh4 {[%clk 0:02:53.9]}
8... c6 {[%clk 0:02:34]} 9. cxd5 {[%clk 0:02:53.4]} 9... Nxd5 {[%clk 0:02:19.1]}
10. Nf5 {[%clk 0:02:52.4]} 10... Na6 {[%clk 0:02:10.1]} 11. e4 {[%clk
0:02:48.7]} 11... Nf6 {[%clk 0:02:04.7]} 12. Nc3 {[%clk 0:02:38.2]} 12... d5
{[%clk 0:02:01.5]} 13. Bf4 {[%clk 0:02:01]} 13... Nc7 {[%clk 0:01:47.9]} 14. Re1
{[%clk 0:01:21.7]} 14... Ne6 {[%clk 0:01:42.1]} 15. exd5 {[%clk 0:01:12.8]}
15... cxd5 {[%clk 0:01:40.8]} 16. Nxd5 {[%clk 0:01:09.1]} 16... Nxd5 {[%clk
0:01:18.3]} 17. Bxd5 {[%clk 0:01:07.3]} 17... Bxd5 {[%clk 0:01:17.7]} 18. Qxd5
{[%clk 0:01:05.4]} 18... Nxf4 {[%clk 0:01:00.3]} 19. Nxe7+ {[%clk 0:00:16.5]}
19... Qxe7 {[%clk 0:00:58.6]} 20. gxf4 {[%clk 0:00:16.4]} 20... Qf6 {[%clk
0:00:54]} 21. Qe5 {[%clk 0:00:11.3]} 21... Qg6+ {[%clk 0:00:30.7]} 22. Kh1
{[%clk 0:00:11.3]} 22... Rad8 {[%clk 0:00:24.5]} 23. Rg1 {[%clk 0:00:11.3]}
23... Qc6+ {[%clk 0:00:23.9]} 24. Rg2 {[%clk 0:00:10.8]} 24... g6 {[%clk
0:00:22.1]} 25. Rg1 {[%clk 0:00:09.6]} 25... Rfe8 {[%clk 0:00:20.3]} 26. Qg5
{[%clk 0:00:07.7]} 26... Rd2 {[%clk 0:00:18.6]} 27. Qh4 {[%clk 0:00:04.2]} 27...
Ree2 {[%clk 0:00:14.4]} 28. Rf1 {[%clk 0:00:02.3]} 28... Rxf2 {[%clk 0:00:11.8]}
29. Qxf2 {[%clk 0:00:02.7]} 29... Rxf2 {[%clk 0:00:09]} 30. Rxf2 {[%clk
0:00:03.6]} 30... Qe4 {[%clk 0:00:05.2]} 31. h3 {[%clk 0:00:03.4]} 31... Qd5
{[%clk 0:00:03.3]} 32. Kh2 {[%clk 0:00:04]} 32... Qxa2 {[%clk 0:00:03.3]} 33. f5
{[%clk 0:00:04.2]} 33... Qd5 {[%clk 0:00:03.1]} 34. fxg6 {[%clk 0:00:04.8]}
34... hxg6 {[%clk 0:00:03.9]} 35. Rd2 {[%clk 0:00:04]} 35... Qe5+ {[%clk
0:00:03.6]} 36. Kg1 {[%clk 0:00:04.9]} 36... Kg7 {[%clk 0:00:04.1]} 37. Rd3
{[%clk 0:00:02.4]} 37... Qe1+ {[%clk 0:00:04.3]} 38. Kh2 {[%clk 0:00:02.8]}
38... Qe5+ {[%clk 0:00:05.2]} 39. Rdg3 {[%clk 0:00:03.3]} 39... f5 {[%clk
0:00:04.8]} 40. Kg1 {[%clk 0:00:03.9]} 40... Qd6 {[%clk 0:00:05]} 41. Kf2 {[%clk
0:00:04.1]} 41... Kh6 {[%clk 0:00:05.1]} 42. Kf3 {[%clk 0:00:03.8]} 42... Qd5+
{[%clk 0:00:05.1]} 43. Kf2 {[%clk 0:00:04.4]} 43... Qd4+ {[%clk 0:00:05.6]} 44.
Kf1 {[%clk 0:00:04.5]} 44... Qc4+ {[%clk 0:00:04.8]} 45. Ke1 {[%clk 0:00:04.4]}
45... Qc1+ {[%clk 0:00:04.7]} 46. Kf2 {[%clk 0:00:03.2]} 46... Qxb2+ {[%clk
0:00:05.6]} 47. Kg1 {[%clk 0:00:04.1]} 47... Qd4+ {[%clk 0:00:05.2]} 48. Kh2
{[%clk 0:00:05]} 48... Qd6 {[%clk 0:00:05.7]} 49. Kg1 {[%clk 0:00:04.9]} 49...
f4 {[%clk 0:00:05.6]} 50. Rg4 {[%clk 0:00:04.9]} 50... a5 {[%clk 0:00:05]} 51.
Rf2 {[%clk 0:00:05]} 51... Qd1+ {[%clk 0:00:04.1]} 52. Kg2 {[%clk 0:00:05]}
52... Qd5+ {[%clk 0:00:03.5]} 53. Kh2 {[%clk 0:00:03.1]} 53... g5 {[%clk
0:00:03.9]} 54. h4 {[%clk 0:00:03.5]} 54... Qe5 {[%clk 0:00:02.2]} 55. hxg5+
{[%clk 0:00:03.6]} 55... Kg6 {[%clk 0:00:02.3]} 56. Rfxf4 {[%clk 0:00:04]} 56...
a4 {[%clk 0:00:02.6]} 57. Kh3 {[%clk 0:00:03.7]} 57... a3 {[%clk 0:00:02.3]} 58.
Rf6+ {[%clk 0:00:04.2]} 58... Kg7 {[%clk 0:00:02.5]} 59. Ra4 {[%clk 0:00:03.4]}
59... Qe3+ {[%clk 0:00:01.4]} 60. Kh4 {[%clk 0:00:04.3]} 1-0

[Event "Early-Titled-Tuesday-Blitz-October-10-2023"]
[Site "Chess.com"]
[Date "2023.10.10"]
[Round "5"]
[White "Quattroporte300"]
[Black "LUISMIGUELOV"]
[Result "1-0"]
[WhiteElo "2382"]
[BlackElo "2138"]
[TimeControl "180+1"]
[EndTime "8:55:11 PDT"]
[Termination "Quattroporte300 won on time"]

1. e4 {[%clk 0:03:00.9]} 1... c6 {[%clk 0:02:57.7]} 2. d4 {[%clk 0:02:58.9]}
2... d5 {[%clk 0:02:55.7]} 3. exd5 {[%clk 0:02:59.8]} 3... cxd5 {[%clk
0:02:54.8]} 4. Bd3 {[%clk 0:02:59.9]} 4... Nc6 {[%clk 0:02:53]} 5. c3 {[%clk
0:03:00.5]} 5... Qc7 {[%clk 0:02:52.9]} 6. Ne2 {[%clk 0:03:00]} 6... Bg4 {[%clk
0:02:52.2]} 7. O-O {[%clk 0:02:59.2]} 7... e6 {[%clk 0:02:50.7]} 8. Qe1 {[%clk
0:02:59.8]} 8... Bxe2 {[%clk 0:02:47.3]} 9. Qxe2 {[%clk 0:02:59.5]} 9... Bd6
{[%clk 0:02:46.9]} 10. h3 {[%clk 0:02:58.1]} 10... Nf6 {[%clk 0:02:46.5]} 11.
Bg5 {[%clk 0:02:57.6]} 11... Be7 {[%clk 0:02:43]} 12. Nd2 {[%clk 0:02:54.7]}
12... h6 {[%clk 0:02:43]} 13. Bh4 {[%clk 0:02:54.3]} 13... O-O {[%clk
0:02:41.2]} 14. Bg3 {[%clk 0:02:52.6]} 14... Bd6 {[%clk 0:02:40.1]} 15. Bxd6
{[%clk 0:02:49.2]} 15... Qxd6 {[%clk 0:02:39.6]} 16. Rae1 {[%clk 0:02:49.8]}
16... a6 {[%clk 0:02:39.4]} 17. f4 {[%clk 0:02:49.5]} 17... Rfe8 {[%clk
0:02:35]} 18. a3 {[%clk 0:02:45]} 18... b5 {[%clk 0:02:30.4]} 19. Nf3 {[%clk
0:02:44.5]} 19... Na5 {[%clk 0:02:26]} 20. Ne5 {[%clk 0:02:44.1]} 20... Nc4
{[%clk 0:02:24.9]} 21. Bb1 {[%clk 0:02:39.3]} 21... Qe7 {[%clk 0:02:14.3]} 22.
g4 {[%clk 0:02:37.2]} 22... a5 {[%clk 0:02:04.5]} 23. g5 {[%clk 0:02:33.5]}
23... hxg5 {[%clk 0:02:03.4]} 24. fxg5 {[%clk 0:02:33.5]} 24... Ne4 {[%clk
0:01:44.6]} 25. Bxe4 {[%clk 0:02:32.7]} 25... dxe4 {[%clk 0:01:42.1]} 26. Qh5
{[%clk 0:02:26.4]} 26... Nxe5 {[%clk 0:01:33.9]} 27. dxe5 {[%clk 0:02:24.6]}
27... g6 {[%clk 0:01:26.4]} 28. Qh6 {[%clk 0:02:22.9]} 28... Qf8 {[%clk
0:01:26.2]} 29. Qh4 {[%clk 0:02:22.9]} 29... Qg7 {[%clk 0:01:22.7]} 30. Qxe4
{[%clk 0:02:20.2]} 30... b4 {[%clk 0:01:20.3]} 31. axb4 {[%clk 0:02:16]} 31...
axb4 {[%clk 0:01:19.9]} 32. c4 {[%clk 0:02:12.3]} 32... b3 {[%clk 0:01:07.6]}
33. Re3 {[%clk 0:02:10]} 33... Ra5 {[%clk 0:01:03.8]} 34. Rfe1 {[%clk
0:02:08.1]} 34... Rb8 {[%clk 0:01:02.7]} 35. Rc3 {[%clk 0:02:02.1]} 35... Ra2
{[%clk 0:01:00.2]} 36. Re2 {[%clk 0:02:00.2]} 36... Ra1+ {[%clk 0:01:00.1]} 37.
Kg2 {[%clk 0:01:58.9]} 37... Rd8 {[%clk 0:00:59.5]} 38. c5 {[%clk 0:01:51.6]}
38... Rdd1 {[%clk 0:00:58.7]} 39. c6 {[%clk 0:01:51.9]} 39... Rg1+ {[%clk
0:00:58.1]} 40. Kh2 {[%clk 0:01:51.7]} 40... Rgc1 {[%clk 0:00:48.1]} 41. Rxc1
{[%clk 0:01:18.4]} 41... Rxc1 {[%clk 0:00:47.2]} 42. Kg3 {[%clk 0:01:04.5]}
42... Qf8 {[%clk 0:00:46.4]} 43. Qe3 {[%clk 0:00:53.6]} 43... Rxc6 {[%clk
0:00:41.3]} 44. Qxb3 {[%clk 0:00:54.2]} 44... Qd8 {[%clk 0:00:37.7]} 45. Qe3
{[%clk 0:00:51.6]} 45... Rc4 {[%clk 0:00:33.4]} 46. Rd2 {[%clk 0:00:50]} 46...
Qa8 {[%clk 0:00:22.2]} 47. Qf3 {[%clk 0:00:45.5]} 47... Qc8 {[%clk 0:00:18.9]}
48. Qd1 {[%clk 0:00:42.5]} 48... Qc7 {[%clk 0:00:18]} 49. Rd6 {[%clk 0:00:39.2]}
49... Rc5 {[%clk 0:00:16.6]} 50. Qd4 {[%clk 0:00:33.2]} 50... Rd5 {[%clk
0:00:14.8]} 51. Rxd5 {[%clk 0:00:30.7]} 51... exd5 {[%clk 0:00:14.8]} 52. Qxd5
{[%clk 0:00:31.2]} 52... Qc2 {[%clk 0:00:14.2]} 53. e6 {[%clk 0:00:18.9]} 53...
fxe6 {[%clk 0:00:09]} 54. Qxe6+ {[%clk 0:00:18.8]} 54... Kg7 {[%clk 0:00:08.5]}
55. Qe7+ {[%clk 0:00:18.5]} 55... Kg8 {[%clk 0:00:08.1]} 56. Qe8+ {[%clk
0:00:18.3]} 56... Kg7 {[%clk 0:00:07.9]} 57. Qe5+ {[%clk 0:00:18.8]} 57... Kg8
{[%clk 0:00:07.4]} 58. Qc3 {[%clk 0:00:18.9]} 58... Qf5 {[%clk 0:00:05.9]} 59.
h4 {[%clk 0:00:17.7]} 59... Qf1 {[%clk 0:00:04.5]} 60. b4 {[%clk 0:00:15.1]}
60... Qg1+ {[%clk 0:00:04]} 61. Kf4 {[%clk 0:00:15.5]} 61... Qh2+ {[%clk
0:00:03.1]} 62. Ke3 {[%clk 0:00:10.5]} 62... Qxh4 {[%clk 0:00:02.1]} 63. Qb3+
{[%clk 0:00:08.1]} 1-0

[Event "Early-Titled-Tuesday-Blitz-October-10-2023"]
[Site "Chess.com"]
[Date "2023.10.10"]
[Round "5"]
[White "marvelavengers4"]
[Black "motivated_bishop"]
[Result "0-1"]
[WhiteElo "2280"]
[BlackElo "2473"]
[TimeControl "180+1"]
[EndTime "8:55:15 PDT"]
[Termination "motivated_bishop won by resignation"]

1. d4 {[%clk 0:03:00.9]} 1... Nf6 {[%clk 0:03:00.1]} 2. Nf3 {[%clk 0:03:00.8]}
2... g6 {[%clk 0:02:59.3]} 3. Bf4 {[%clk 0:02:58.2]} 3... Bg7 {[%clk 0:02:58.8]}
4. e3 {[%clk 0:02:58.5]} 4... O-O {[%clk 0:02:57.5]} 5. Nbd2 {[%clk 0:02:58.4]}
5... d6 {[%clk 0:02:57.2]} 6. h3 {[%clk 0:02:58.5]} 6... c5 {[%clk 0:02:56.2]}
7. Be2 {[%clk 0:02:58.4]} 7... b6 {[%clk 0:02:55.8]} 8. c3 {[%clk 0:02:57.7]}
8... Bb7 {[%clk 0:02:56]} 9. O-O {[%clk 0:02:58]} 9... Nbd7 {[%clk 0:02:56.1]}
10. Bh2 {[%clk 0:02:58]} 10... a6 {[%clk 0:02:54.9]} 11. Re1 {[%clk 0:02:57.9]}
11... Ra7 {[%clk 0:02:55.1]} 12. Bd3 {[%clk 0:02:50.3]} 12... Qa8 {[%clk
0:02:51.2]} 13. e4 {[%clk 0:02:50.3]} 13... e5 {[%clk 0:02:36.3]} 14. dxe5
{[%clk 0:02:43.4]} 14... dxe5 {[%clk 0:02:31.1]} 15. Nxe5 {[%clk 0:02:42.1]}
15... Nxe5 {[%clk 0:02:28.8]} 16. Bxe5 {[%clk 0:02:40.1]} 16... Rd8 {[%clk
0:02:28.2]} 17. Qe2 {[%clk 0:02:35.9]} 17... Nh5 {[%clk 0:01:55.9]} 18. Bh2
{[%clk 0:02:30.5]} 18... Bh6 {[%clk 0:01:50.9]} 19. Nf1 {[%clk 0:02:24.4]} 19...
b5 {[%clk 0:01:47]} 20. Rad1 {[%clk 0:02:19.7]} 20... Bc6 {[%clk 0:01:41.6]} 21.
Ne3 {[%clk 0:02:15.9]} 21... Rad7 {[%clk 0:01:31.8]} 22. Ng4 {[%clk 0:02:07]}
22... Bg7 {[%clk 0:01:30.7]} 23. Bc2 {[%clk 0:02:00.5]} 23... Qc8 {[%clk
0:01:15.4]} 24. e5 {[%clk 0:01:55.5]} 24... Rxd1 {[%clk 0:01:10.2]} 25. Rxd1
{[%clk 0:01:53.9]} 25... Rxd1+ {[%clk 0:01:08.4]} 26. Qxd1 {[%clk 0:01:53.9]}
26... Qd7 {[%clk 0:01:07.6]} 27. Qd6 {[%clk 0:01:45.4]} 27... Qxd6 {[%clk
0:01:03.9]} 28. exd6 {[%clk 0:01:46.3]} 28... f5 {[%clk 0:00:56.2]} 29. Ne5
{[%clk 0:01:43.7]} 29... Bxe5 {[%clk 0:00:56.4]} 30. Bxe5 {[%clk 0:01:43]} 30...
Kf7 {[%clk 0:00:56.5]} 31. g4 {[%clk 0:01:39.9]} 31... fxg4 {[%clk 0:00:54.3]}
32. hxg4 {[%clk 0:01:40.8]} 32... Nf6 {[%clk 0:00:54.3]} 33. Bxf6 {[%clk
0:01:29]} 33... Kxf6 {[%clk 0:00:53.4]} 34. f4 {[%clk 0:01:29.9]} 34... h6
{[%clk 0:00:27.2]} 35. Kf2 {[%clk 0:01:27.3]} 35... Bd7 {[%clk 0:00:18.4]} 36.
Kg3 {[%clk 0:01:25.3]} 36... Be8 {[%clk 0:00:15.5]} 37. Bb3 {[%clk 0:01:23.9]}
37... c4 {[%clk 0:00:15]} 38. Bc2 {[%clk 0:01:23.3]} 38... Ke6 {[%clk
0:00:15.3]} 39. Be4 {[%clk 0:00:59.9]} 39... Kxd6 {[%clk 0:00:14.4]} 40. Kf3
{[%clk 0:00:59.4]} 40... a5 {[%clk 0:00:12.1]} 41. Ke3 {[%clk 0:00:59.5]} 41...
Kc5 {[%clk 0:00:11.9]} 42. g5 {[%clk 0:00:56.6]} 42... hxg5 {[%clk 0:00:08.8]}
43. fxg5 {[%clk 0:00:57.5]} 43... b4 {[%clk 0:00:08.4]} 44. Kf4 {[%clk
0:00:57.3]} 44... a4 {[%clk 0:00:06.9]} 45. cxb4+ {[%clk 0:00:53.1]} 45... Kxb4
{[%clk 0:00:07.2]} 46. Bc2 {[%clk 0:00:52.7]} 46... a3 {[%clk 0:00:06.3]} 47. b3
{[%clk 0:00:49]} 47... Bf7 {[%clk 0:00:06.4]} 48. bxc4 {[%clk 0:00:48.2]} 48...
Bxc4 {[%clk 0:00:06.4]} 49. Bb1 {[%clk 0:00:48.4]} 49... Kc3 {[%clk 0:00:04.9]}
50. Ke5 {[%clk 0:00:48.6]} 50... Kb2 {[%clk 0:00:04.9]} 51. Bxg6 {[%clk
0:00:48.4]} 51... Kxa2 {[%clk 0:00:03.8]} 52. Kd4 {[%clk 0:00:47.6]} 52... Kb2
{[%clk 0:00:02.7]} 53. Kxc4 {[%clk 0:00:42.3]} 53... a2 {[%clk 0:00:03.2]} 54.
Be4 {[%clk 0:00:42]} 54... a1=Q {[%clk 0:00:04.1]} 55. g6 {[%clk 0:00:42.4]}
55... Qa6+ {[%clk 0:00:03.7]} 56. Kd4 {[%clk 0:00:41.5]} 56... Qf6+ {[%clk
0:00:04.6]} 57. Kd5 {[%clk 0:00:41.3]} 57... Kc3 {[%clk 0:00:05.5]} 58. Bb1
{[%clk 0:00:36.4]} 58... Kd2 {[%clk 0:00:05.2]} 59. Kc5 {[%clk 0:00:32.1]} 59...
Qg7 {[%clk 0:00:05.1]} 60. Be4 {[%clk 0:00:30.5]} 60... Ke3 {[%clk 0:00:06]} 61.
Bf5 {[%clk 0:00:29]} 61... Kf4 {[%clk 0:00:06.9]} 62. Bd3 {[%clk 0:00:28.7]}
62... Qc3+ {[%clk 0:00:06.3]} 63. Bc4 {[%clk 0:00:28]} 63... Kg5 {[%clk
0:00:05.4]} 64. g7 {[%clk 0:00:26.5]} 64... Qxg7 {[%clk 0:00:04.9]} 65. Kd5
{[%clk 0:00:27.4]} 65... Kf4 {[%clk 0:00:04.9]} 66. Kc5 {[%clk 0:00:28]} 66...
Qe5+ {[%clk 0:00:05.1]} 67. Bd5 {[%clk 0:00:28.9]} 67... Ke3 {[%clk 0:00:05.2]}
68. Kc6 {[%clk 0:00:29.8]} 68... Kd4 {[%clk 0:00:05]} 69. Bb3 {[%clk 0:00:29.9]}
69... Qc5+ {[%clk 0:00:04.8]} 70. Kd7 {[%clk 0:00:30.7]} 70... Qb5+ {[%clk
0:00:05.2]} 71. Ke7 {[%clk 0:00:30.5]} 71... Qxb3 {[%clk 0:00:06.1]} 0-1

[Event "Early-Titled-Tuesday-Blitz-October-10-2023"]
[Site "Chess.com"]
[Date "2023.10.10"]
[Round "5"]
[White "Krlence"]
[Black "karinachess1"]
[Result "1-0"]
[WhiteElo "2440"]
[BlackElo "2610"]
[TimeControl "180+1"]
[EndTime "8:55:16 PDT"]
[Termination "Krlence won on time"]

1. e4 {[%clk 0:03:00.9]} 1... e5 {[%clk 0:02:59.4]} 2. Bc4 {[%clk 0:02:59.5]}
2... Nf6 {[%clk 0:02:58.8]} 3. d3 {[%clk 0:02:59.4]} 3... c6 {[%clk 0:02:58.6]}
4. Nf3 {[%clk 0:02:58.1]} 4... Be7 {[%clk 0:02:58.9]} 5. O-O {[%clk 0:02:55.3]}
5... d6 {[%clk 0:02:59.2]} 6. h3 {[%clk 0:02:55.2]} 6... O-O {[%clk 0:02:59.8]}
7. c3 {[%clk 0:02:54.1]} 7... Nbd7 {[%clk 0:02:58.3]} 8. Bb3 {[%clk 0:02:54.4]}
8... h6 {[%clk 0:02:51.4]} 9. Re1 {[%clk 0:02:53.3]} 9... Re8 {[%clk 0:02:51.6]}
10. Nbd2 {[%clk 0:02:52.9]} 10... Nf8 {[%clk 0:02:45]} 11. Nf1 {[%clk
0:02:52.7]} 11... Be6 {[%clk 0:02:43.8]} 12. Ng3 {[%clk 0:02:51]} 12... Qd7
{[%clk 0:02:35.4]} 13. d4 {[%clk 0:02:47.4]} 13... Bxb3 {[%clk 0:02:31.4]} 14.
Qxb3 {[%clk 0:02:40.1]} 14... Ng6 {[%clk 0:02:31.9]} 15. dxe5 {[%clk 0:02:38.9]}
15... dxe5 {[%clk 0:02:31.1]} 16. Be3 {[%clk 0:02:39.2]} 16... Bf8 {[%clk
0:02:25]} 17. Rad1 {[%clk 0:02:38]} 17... Qc7 {[%clk 0:02:25.2]} 18. Qc2 {[%clk
0:02:24.4]} 18... b6 {[%clk 0:02:19.7]} 19. Nf5 {[%clk 0:02:24]} 19... Rad8
{[%clk 0:02:16.1]} 20. a4 {[%clk 0:02:18.6]} 20... Rxd1 {[%clk 0:02:06.9]} 21.
Rxd1 {[%clk 0:02:17.5]} 21... Rd8 {[%clk 0:02:07.2]} 22. Ng3 {[%clk 0:02:16.1]}
22... Rxd1+ {[%clk 0:02:02.4]} 23. Qxd1 {[%clk 0:02:17]} 23... Qd7 {[%clk
0:02:02.7]} 24. Qe2 {[%clk 0:02:15.8]} 24... Nf4 {[%clk 0:01:38.7]} 25. Bxf4
{[%clk 0:02:04]} 25... exf4 {[%clk 0:01:39.6]} 26. Nf5 {[%clk 0:02:00.2]} 26...
Qe6 {[%clk 0:01:36.5]} 27. Nd2 {[%clk 0:01:57.8]} 27... Nd7 {[%clk 0:01:00.4]}
28. Nd4 {[%clk 0:01:52.9]} 28... Qg6 {[%clk 0:00:56.6]} 29. N2f3 {[%clk
0:01:42.6]} 29... Bc5 {[%clk 0:00:44.9]} 30. b4 {[%clk 0:01:31]} 30... Bxd4
{[%clk 0:00:44.5]} 31. cxd4 {[%clk 0:01:29.6]} 31... Qd6 {[%clk 0:00:43.2]} 32.
Qc4 {[%clk 0:01:28.9]} 32... g6 {[%clk 0:00:30.9]} 33. b5 {[%clk 0:01:26.3]}
33... c5 {[%clk 0:00:27.3]} 34. e5 {[%clk 0:01:23.2]} 34... Qe7 {[%clk
0:00:26.3]} 35. dxc5 {[%clk 0:01:17.1]} 35... Nxc5 {[%clk 0:00:19.3]} 36. Qxf4
{[%clk 0:01:16.3]} 36... Ne6 {[%clk 0:00:19.3]} 37. Qxh6 {[%clk 0:01:16.1]}
37... Qb4 {[%clk 0:00:16.5]} 38. Qh4 {[%clk 0:00:59.7]} 38... Qb1+ {[%clk
0:00:15.7]} 39. Kh2 {[%clk 0:00:58.9]} 39... Qf1 {[%clk 0:00:14.5]} 40. Kg3
{[%clk 0:00:24]} 40... Qa1 {[%clk 0:00:14.6]} 41. Qc4 {[%clk 0:00:18.1]} 41...
Nc5 {[%clk 0:00:14.7]} 42. Ng5 {[%clk 0:00:16.3]} 42... Qxe5+ {[%clk 0:00:14.3]}
43. f4 {[%clk 0:00:15.9]} 43... Qe3+ {[%clk 0:00:12.3]} 44. Kh2 {[%clk
0:00:16.4]} 44... Qe7 {[%clk 0:00:11.7]} 45. a5 {[%clk 0:00:15.6]} 45... Qc7
{[%clk 0:00:09.7]} 46. axb6 {[%clk 0:00:14.6]} 46... axb6 {[%clk 0:00:10.6]} 47.
Kg3 {[%clk 0:00:09.9]} 47... Qe7 {[%clk 0:00:08.6]} 48. Qd4 {[%clk 0:00:08.4]}
48... Ne6 {[%clk 0:00:04.7]} 49. Nxe6 {[%clk 0:00:06.3]} 49... Qxe6 {[%clk
0:00:05.6]} 50. Qe5 {[%clk 0:00:05.8]} 50... Qb3+ {[%clk 0:00:05.2]} 51. Kh2
{[%clk 0:00:06.3]} 51... Kh7 {[%clk 0:00:05.3]} 52. f5 {[%clk 0:00:06]} 52...
gxf5 {[%clk 0:00:04.4]} 53. Qxf5+ {[%clk 0:00:06.9]} 53... Kg8 {[%clk
0:00:03.4]} 54. Qg4+ {[%clk 0:00:06.8]} 54... Kh7 {[%clk 0:00:03.3]} 55. Qh5+
{[%clk 0:00:06.5]} 55... Kg8 {[%clk 0:00:03.8]} 56. Qg5+ {[%clk 0:00:06.7]}
56... Kh7 {[%clk 0:00:04.3]} 57. Qh4+ {[%clk 0:00:05.2]} 57... Kg8 {[%clk
0:00:04.7]} 58. Qd8+ {[%clk 0:00:05.6]} 58... Kg7 {[%clk 0:00:03.1]} 59. Qxb6
{[%clk 0:00:06.2]} 59... Qd3 {[%clk 0:00:01.5]} 60. Qc6 {[%clk 0:00:03.4]} 60...
Qe3 {[%clk 0:00:01.4]} 61. Qd6 {[%clk 0:00:02.1]} 1-0

[Event "Early-Titled-Tuesday-Blitz-October-10-2023"]
[Site "Chess.com"]
[Date "2023.10.10"]
[Round "5"]
[White "Sunny_Star"]
[Black "howitzer14"]
[Result "1-0"]
[WhiteElo "2101"]
[BlackElo "3006"]
[TimeControl "180+1"]
[EndTime "8:55:18 PDT"]
[Termination "Sunny_Star won by checkmate"]

1. f4 {[%clk 0:02:55.6]} 1... b5 {[%clk 0:02:45.1]} 2. Nf3 {[%clk 0:02:54.7]}
2... Bb7 {[%clk 0:02:45.7]} 3. e3 {[%clk 0:02:51.7]} 3... a6 {[%clk 0:02:42.9]}
4. g3 {[%clk 0:02:50.5]} 4... c5 {[%clk 0:02:41.7]} 5. Bg2 {[%clk 0:02:51]} 5...
e6 {[%clk 0:02:35.4]} 6. O-O {[%clk 0:02:49.5]} 6... Nf6 {[%clk 0:02:34.9]} 7.
a4 {[%clk 0:02:49.3]} 7... Be7 {[%clk 0:02:27.4]} 8. Qe2 {[%clk 0:02:44]} 8...
b4 {[%clk 0:02:19.4]} 9. d3 {[%clk 0:02:39.1]} 9... d5 {[%clk 0:02:18.4]} 10.
Nbd2 {[%clk 0:02:37.7]} 10... Nc6 {[%clk 0:02:11.7]} 11. e4 {[%clk 0:02:22.9]}
11... O-O {[%clk 0:02:11.2]} 12. Ne5 {[%clk 0:02:15.9]} 12... a5 {[%clk
0:01:33.9]} 13. Nxc6 {[%clk 0:01:34.6]} 13... Bxc6 {[%clk 0:01:34.8]} 14. e5
{[%clk 0:01:34.7]} 14... Nd7 {[%clk 0:01:33.4]} 15. Nc4 {[%clk 0:01:26.7]} 15...
Qc7 {[%clk 0:01:24.4]} 16. Ne3 {[%clk 0:01:20.3]} 16... Rae8 {[%clk 0:01:24.9]}
17. Ng4 {[%clk 0:01:16.9]} 17... Bd8 {[%clk 0:00:51.1]} 18. c3 {[%clk
0:01:02.5]} 18... f6 {[%clk 0:00:43.5]} 19. d4 {[%clk 0:01:01.2]} 19... Qa7
{[%clk 0:00:41.1]} 20. Be3 {[%clk 0:00:59.2]} 20... Bb6 {[%clk 0:00:41.5]} 21.
Rfd1 {[%clk 0:00:56.3]} 21... Re7 {[%clk 0:00:24.4]} 22. Kh1 {[%clk 0:00:47.2]}
22... Kh8 {[%clk 0:00:24.3]} 23. Qc2 {[%clk 0:00:19.3]} 23... Bb7 {[%clk
0:00:22.3]} 24. Rd2 {[%clk 0:00:16.5]} 24... Ba6 {[%clk 0:00:22.6]} 25. Re1
{[%clk 0:00:16]} 25... f5 {[%clk 0:00:20.7]} 26. Nf2 {[%clk 0:00:15.5]} 26...
Rc8 {[%clk 0:00:21.4]} 27. Qb1 {[%clk 0:00:12.8]} 27... Nb8 {[%clk 0:00:17.5]}
28. Nh3 {[%clk 0:00:10.8]} 28... cxd4 {[%clk 0:00:11]} 29. cxd4 {[%clk
0:00:10.4]} 29... h6 {[%clk 0:00:10.6]} 30. g4 {[%clk 0:00:06.9]} 30... Rf8
{[%clk 0:00:03.7]} 31. gxf5 {[%clk 0:00:06.7]} 31... Rxf5 {[%clk 0:00:03.1]} 32.
Bxd5 {[%clk 0:00:06.7]} 32... Bb7 {[%clk 0:00:01.8]} 33. Be4 {[%clk 0:00:04.9]}
33... Bd5 {[%clk 0:00:01.5]} 34. Bxd5 {[%clk 0:00:04.5]} 34... Rh5 {[%clk
0:00:02.2]} 35. Bg2 {[%clk 0:00:02.8]} 35... Qd7 {[%clk 0:00:02.8]} 36. Nf2
{[%clk 0:00:02.6]} 36... Rh4 {[%clk 0:00:02.7]} 37. Ne4 {[%clk 0:00:02.7]} 37...
Nc6 {[%clk 0:00:02.4]} 38. Red1 {[%clk 0:00:03]} 38... Rf7 {[%clk 0:00:02.2]}
39. Bf3 {[%clk 0:00:03.2]} 39... Ne7 {[%clk 0:00:01.6]} 40. Nc5 {[%clk
0:00:03.6]} 40... Nf5 {[%clk 0:00:02.5]} 41. Nxd7 {[%clk 0:00:03.4]} 41... Rxd7
{[%clk 0:00:03.3]} 42. Bf2 {[%clk 0:00:03]} 42... Rh3 {[%clk 0:00:03.9]} 43. Bg2
{[%clk 0:00:03]} 43... Rh5 {[%clk 0:00:04.2]} 44. Qe4 {[%clk 0:00:03]} 44... Rd5
{[%clk 0:00:03.5]} 45. Qe2 {[%clk 0:00:02.3]} 45... Rxd4 {[%clk 0:00:02.1]} 46.
Qxh5 {[%clk 0:00:01.4]} 46... Rxf4 {[%clk 0:00:01.4]} 47. Qe8+ {[%clk 0:00:01]}
47... Kh7 {[%clk 0:00:01.1]} 48. Bxb6 {[%clk 0:00:01.1]} 48... Ng3+ {[%clk
0:00:02]} 49. hxg3 {[%clk 0:00:01.1]} 49... Rf1+ {[%clk 0:00:02.9]} 50. Kh2
{[%clk 0:00:01.4]} 50... Rg1 {[%clk 0:00:02.3]} 51. Kxg1 {[%clk 0:00:01.5]}
51... h5 {[%clk 0:00:02]} 52. Kh1 {[%clk 0:00:02.1]} 52... Kh6 {[%clk
0:00:02.7]} 53. Qxe6+ {[%clk 0:00:02.5]} 53... Kg5 {[%clk 0:00:03.6]} 54. Qe7+
{[%clk 0:00:02.4]} 54... Kg4 {[%clk 0:00:04.5]} 55. Qd7+ {[%clk 0:00:02.4]}
55... Kxg3 {[%clk 0:00:04.4]} 56. Rd3+ {[%clk 0:00:02.7]} 56... Kf4 {[%clk
0:00:05.3]} 57. Qf7+ {[%clk 0:00:02.5]} 57... Kxe5 {[%clk 0:00:06.2]} 58. Qe7+
{[%clk 0:00:02.6]} 58... Kf4 {[%clk 0:00:06.4]} 59. Rf1+ {[%clk 0:00:03.3]}
59... Kg4 {[%clk 0:00:06.6]} 60. Qe4+ {[%clk 0:00:03.4]} 60... Kg5 {[%clk
0:00:07]} 61. Qf4+ {[%clk 0:00:03.8]} 61... Kg6 {[%clk 0:00:07.3]} 62. Be4#
{[%clk 0:00:04.5]} 1-0